[Event "GER-ch Youth U18 2019"]
[Site "Willingen"]
[Date "2019.06.10"]
[Round "3.10"]
[White "Hinrichs, Niklas"]
[Black "Muetsch, Annmarie"]
[Result "0-1"]
[ECO "E81"]
[WhiteElo "2115"]
[BlackElo "2266"]
[Annotator "NA"]
[PlyCount "54"]
[EventDate "2019.06.07"]
[EventType "swiss"]
[EventRounds "9"]
[EventCountry "GER"]
[SourceTitle "playchess.com"]
[Source "ChessBase"]
[SourceQuality "1"]
[TimeControl "40/5400+30:1800+30"]

1. d4 {[%emt 0:00:00]} Nf6 {[%emt 0:00:00]} 2. c4 {[%emt 0:00:00]} g6 {[%emt 0:00:00]} 3. Nc3 {[%emt 0:00:00]} Bg7 {[%emt 0:00:00]} 4. e4 {[%emt 0:00:00]} d6 {[%emt 0:00:00]} 5. f3 {[%emt 0:00:00]} O-O {[%emt 0:00:00]} 6. Be3 {[%emt 0:00:00]} c5 {[%emt 0:00:02]} 7. dxc5 {[%emt 0:00:14]} dxc5 {[%emt 0:01:26]} 8. Qxd8 {[%emt 0:00:05]} Rxd8 {[%emt 0:00:02]} 9. Bxc5 {[%emt 0:00:04]} Nc6 {[%emt 0:01:26]} 10. Be3 {[%emt 0:00:22]} Nb4 {[%emt 0:01:17]} 11. Rc1 {[%emt 0:01:29]} Be6 {[%emt 0:03:29]} 12. Nh3 {[%emt 0:02:43]} Nd3+ {[%emt 0:03:51]} 13. Bxd3 {[%emt 0:00:16]} Rxd3 {[%emt 0:00:04]} 14. Nd1 {[%emt 0:00:09]} Bxh3 {[%emt 0:03:54]} 15. gxh3 {[%emt 0:00:03]} Nh5 {[%emt 0:02:31]} 16. Ke2 {[%emt 0:03:02]} Rad8 {[%emt 0:00:25]} 17. b3 {[%emt 0:04:14]} Be5 {[%emt 0:06:47]} 18. Nf2 {[%emt 0:02:03]} Rxe3+ {[%emt 0:06:31]} 19. Kxe3 {[%emt 0:00:09]} Bf4+ {[%emt 0:00:09]} 20. Ke2 {[%emt 0:00:05]} Rd2+ {[%emt 0:00:08]} 21. Ke1 {[%emt 0:55:32]} Rxa2 {[%emt 0:07:14]} 22. Rd1 {[%emt 0:06:13]} Be3 {[%emt 0:06:59]} 23. Nd3 {[%emt 0:01:51]} g5 {[%emt 0:06:21]} 24. Nb4 {[%emt 0:06:12]} Rb2 {[%emt 0:03:31]} 25. Nd3 {[%emt 0:04:39]} Rc2 {[%emt 0:09:37]} 26. Nb4 {[%emt 0:01:55]} Rg2 {[%emt 0:00:15]} 27. Nd5 {[%emt 0:01:09]} Nf4 {[%emt 0:07:25] normal} 0-1

[Event "GER-ch Youth U18 2019"]
[Site "Willingen"]
[Date "2019.06.10"]
[Round "3.11"]
[White "Runte, Moritz"]
[Black "Martin, Julian"]
[Result "1/2-1/2"]
[ECO "B56"]
[WhiteElo "2096"]
[BlackElo "2370"]
[Annotator "NA"]
[PlyCount "42"]
[EventDate "2019.06.07"]
[EventType "swiss"]
[EventRounds "9"]
[EventCountry "GER"]
[SourceTitle "playchess.com"]
[Source "ChessBase"]
[SourceQuality "1"]
[TimeControl "40/5400+30:1800+30"]

1. e4 {[%emt 0:00:00]} c5 {[%emt 0:00:00]} 2. Nf3 {[%emt 0:00:00]} d6 {[%emt 0:00:00]} 3. d4 {[%emt 0:00:00]} cxd4 {[%emt 0:00:07]} 4. Nxd4 {[%emt 0:00:00]} Nf6 {[%emt 0:00:07]} 5. Nc3 {[%emt 0:00:00]} e5 {[%emt 0:04:43]} 6. Nde2 {[%emt 0:08:29]} Be7 {[%emt 0:06:24]} 7. g3 {[%emt 0:01:14]} Be6 {[%emt 0:00:35]} 8. Bg2 {[%emt 0:01:36]} Nc6 {[%emt 0:01:22]} 9. O-O {[%emt 0:05:49]} O-O {[%emt 0:01:09]} 10. h3 {[%emt 0:02:25]} Qd7 {[%emt 0:23:51]} 11. Kh2 {[%emt 0:09:45]} Ne8 {[%emt 0:22:02]} 12. g4 {[%emt 0:07:53]} Nc7 {[%emt 0:03:03]} 13. Ng3 {[%emt 0:04:36]} Bc4 {[%emt 0:09:26]} 14. Re1 {[%emt 0:04:21]} Bh4 {[%emt 0:00:17]} 15. Nd5 {[%emt 0:10:41]} Bxg3+ {[%emt 0:01:37]} 16. fxg3 {[%emt 0:06:05]} Ne7 {[%emt 0:00:47]} 17. Nxc7 {[%emt 0:04:39]} Qxc7 {[%emt 0:00:29]} 18. b3 {[%emt 0:00:43]} Be6 {[%emt 0:00:15]} 19. Re3 {[%emt 0:03:10]} b5 {[%emt 0:05:35]} 20. Rd3 {[%emt 0:02:40]} Nc6 {[%emt 0:00:48]} 21. c3 {[%emt 0:01:01]} a5 {[%emt 0:01:25] normal} 1/2-1/2

[Event "GER-ch Youth U18 2019"]
[Site "Willingen"]
[Date "2019.06.10"]
[Round "3.12"]
[White "Schnabel, Bennett"]
[Black "Schneider, Jana"]
[Result "1/2-1/2"]
[ECO "A13"]
[WhiteElo "2125"]
[BlackElo "2235"]
[Annotator "NA"]
[PlyCount "45"]
[EventDate "2019.06.07"]
[EventType "swiss"]
[EventRounds "9"]
[EventCountry "GER"]
[SourceTitle "playchess.com"]
[Source "ChessBase"]
[SourceQuality "1"]
[TimeControl "40/5400+30:1800+30"]

1. c4 {[%emt 0:00:00]} e6 {[%emt 0:01:49]} 2. g3 {[%emt 0:05:50]} d5 {[%emt 0:00:24]} 3. Bg2 {[%emt 0:00:09]} Nf6 {[%emt 0:00:35]} 4. d4 {[%emt 0:01:41]} Bb4+ {[%emt 0:01:10]} 5. Bd2 {[%emt 0:03:19]} Bd6 {[%emt 0:00:13]} 6. Nc3 {[%emt 0:03:24]} c6 {[%emt 0:08:55]} 7. e4 {[%emt 0:02:57]} dxe4 {[%emt 0:04:52]} 8. Nxe4 {[%emt 0:00:13]} Nxe4 {[%emt 0:00:18]} 9. Bxe4 {[%emt 0:00:09]} Nd7 {[%emt 0:01:15]} 10. Bc3 {[%emt 0:01:17]} O-O {[%emt 0:07:08]} 11. Nf3 {[%emt 0:02:57]} c5 {[%emt 0:05:32]} 12. O-O {[%emt 0:01:09]} Nf6 {[%emt 0:10:23]} 13. Bc2 {[%emt 0:01:51]} b6 {[%emt 0:02:52]} 14. Ne5 {[%emt 0:10:09]} Bb7 {[%emt 0:01:21]} 15. Ng4 {[%emt 0:00:53]} Ne4 {[%emt 0:17:22]} 16. Qd3 {[%emt 0:05:17]} cxd4 {[%emt 0:07:01]} 17. Qxd4 {[%emt 0:03:42]} e5 {[%emt 0:00:22]} 18. Qd3 {[%emt 0:20:40]} Ng5 {[%emt 0:00:25]} 19. Rfd1 {[%emt 0:00:55]} Qc8 {[%emt 0:10:29]} 20. Qf5 {[%emt 0:06:24]} Qxf5 {[%emt 0:04:20]} 21. Bxf5 {[%emt 0:00:01]} Rad8 {[%emt 0:00:30]} 22. h4 {[%emt 0:04:28]} Nf3+ {[%emt 0:01:05]} 23. Kf1 {[%emt 0:00:06] normal} 1/2-1/2

[Event "GER-ch Youth U18 2019"]
[Site "Willingen"]
[Date "2019.06.10"]
[Round "3.13"]
[White "Engel, Robert"]
[Black "Knoedler, Marcel"]
[Result "1/2-1/2"]
[ECO "B15"]
[WhiteElo "2067"]
[BlackElo "1633"]
[Annotator "NA"]
[PlyCount "74"]
[EventDate "2019.06.07"]
[EventType "swiss"]
[EventRounds "9"]
[EventCountry "GER"]
[SourceTitle "playchess.com"]
[Source "ChessBase"]
[SourceQuality "1"]
[TimeControl "40/5400+30:1800+30"]

1. e4 {[%emt 0:00:00]} c6 {[%emt 0:00:00]} 2. d4 {[%emt 0:00:00]} d5 {[%emt 0:00:00]} 3. Nc3 {[%emt 0:00:00]} dxe4 {[%emt 0:00:10]} 4. Nxe4 {[%emt 0:00:02]} Nf6 {[%emt 0:00:03]} 5. Nxf6+ {[%emt 0:00:06]} exf6 6. Nf3 {[%emt 0:09:57]} Bd6 {[%emt 0:03:26]} 7. Bd3 {[%emt 0:00:16]} O-O {[%emt 0:02:59]} 8. O-O {[%emt 0:07:36]} Be6 {[%emt 0:17:37]} 9. b3 {[%emt 0:10:32]} Qa5 {[%emt 0:11:29]} 10. h3 {[%emt 0:02:10]} Qh5 11. Nd2 {[%emt 0:06:25]} Qh4 {[%emt 0:07:43]} 12. Ne4 {[%emt 0:02:23]} Bc7 13. f4 f5 {[%emt 0:18:31]} 14. Ng5 {[%emt 0:03:06]} h6 15. Nxe6 {[%emt 0:03:28]} fxe6 {[%emt 0:00:45]} 16. Qe2 {[%emt 0:03:19]} Qe7 17. Re1 Rf6 {[%emt 0:06:38]} 18. Bc4 {[%emt 0:07:38]} Kf7 {[%emt 0:01:27]} 19. Qh5+ {[%emt 0:06:16]} Kf8 {[%emt 0:05:32]} 20. Kh1 {[%emt 0:05:39]} b5 21. Bd3 Ba5 {[%emt 0:01:40]} 22. Re2 {[%emt 0:10:21]} Bc3 {[%emt 0:00:43]} 23. Rb1 Bxd4 {[%emt 0:02:44]} 24. Bd2 {[%emt 0:00:10]} Nd7 {[%emt 0:05:03]} 25. Be1 Qf7 26. Qf3 {[%emt 0:05:35]} e5 {[%emt 0:03:11]} 27. Bb4+ Kg8 {[%emt 0:01:50]} 28. fxe5 {[%emt 0:01:53]} Nxe5 29. Qf4 Nxd3 {[%emt 0:02:41]} 30. Qxd4 {[%emt 0:04:12]} Nxb4 {[%emt 0:00:55]} 31. Qxb4 {[%emt 0:00:03]} Re8 {[%emt 0:01:00]} 32. Rbe1 {[%emt 0:00:44]} Rfe6 {[%emt 0:00:45]} 33. Rxe6 {[%emt 0:00:05]} Rxe6 {[%emt 0:00:34]} 34. Rxe6 {[%emt 0:00:52]} Qxe6 35. a4 Qe4 {[%emt 0:02:58]} 36. Qc5 {[%emt 0:02:20]} a6 {[%emt 0:01:52]} 37. axb5 {[%emt 0:00:49]} axb5 {[%emt 0:00:31] normal} 1/2-1/2

[Event "GER-ch Youth U18 2019"]
[Site "Willingen"]
[Date "2019.06.10"]
[Round "3.14"]
[White "Sureshkumar, Atchuthan"]
[Black "Lange, Jannis"]
[Result "0-1"]
[ECO "B33"]
[WhiteElo "1502"]
[BlackElo "2024"]
[Annotator "NA"]
[PlyCount "40"]
[EventDate "2019.06.07"]
[EventType "swiss"]
[EventRounds "9"]
[EventCountry "GER"]
[SourceTitle "playchess.com"]
[Source "ChessBase"]
[SourceQuality "1"]
[TimeControl "40/5400+30:1800+30"]

1. e4 {[%emt 0:00:00]} c5 {[%emt 0:00:00]} 2. Nf3 {[%emt 0:00:00]} Nc6 {[%emt 0:00:00]} 3. d4 {[%emt 0:00:00]} cxd4 {[%emt 0:00:48]} 4. Nxd4 {[%emt 0:00:51]} Nf6 {[%emt 0:00:23]} 5. Nc3 {[%emt 0:01:28]} e5 {[%emt 0:00:10]} 6. Ndb5 {[%emt 0:01:02]} d6 {[%emt 0:00:09]} 7. Bg5 {[%emt 0:00:09]} a6 {[%emt 0:00:04]} 8. Na3 {[%emt 0:02:47]} b5 {[%emt 0:00:23]} 9. Nd5 {[%emt 0:00:18]} Be7 {[%emt 0:00:05]} 10. Bxf6 {[%emt 0:00:31]} Bxf6 {[%emt 0:00:56]} 11. c4 {[%emt 0:00:12]} b4 {[%emt 0:13:51]} 12. Nc2 {[%emt 0:04:27]} a5 {[%emt 0:02:10]} 13. Be2 {[%emt 0:05:12]} Bg5 {[%emt 0:01:06]} 14. O-O {[%emt 0:03:25]} O-O {[%emt 0:03:45]} 15. b3 {[%emt 0:08:23]} Be6 {[%emt 0:15:00]} 16. f4 {[%emt 0:01:31]} exf4 {[%emt 0:16:51]} 17. Nxf4 {[%emt 0:04:36]} Bf6 {[%emt 0:02:27]} 18. Rb1 {[%emt 0:04:18]} Be5 {[%emt 0:09:56]} 19. Nd5 {[%emt 0:13:03]} Qh4 {[%emt 0:02:26]} 20. h3 Bxh3 {normal} 0-1

[Event "GER-ch Youth U18 2019"]
[Site "Willingen"]
[Date "2019.06.11"]
[Round "4.1"]
[White "Kuznecovs, Nikita"]
[Black "Engel, Luis"]
[Result "0-1"]
[ECO "A06"]
[WhiteElo "2317"]
[BlackElo "2512"]
[Annotator "RC"]
[PlyCount "102"]
[EventDate "2019.06.07"]
[EventType "swiss"]
[EventRounds "9"]
[EventCountry "GER"]
[SourceTitle "playchess.com"]
[Source "ChessBase"]
[SourceQuality "1"]
[TimeControl "40/5400+30:1800+30"]

1. Nf3 {[%emt 0:00:00]} d5 {[%emt 0:00:00]} 2. c4 {[%emt 0:02:07]} e6 {[%emt 0:00:00]} 3. b3 {[%emt 0:00:24]} Nf6 {[%emt 0:00:01]} 4. g3 {[%emt 0:00:22]} c5 {[%emt 0:00:59]} 5. Bg2 {[%emt 0:02:58]} Nc6 {[%emt 0:00:34]} 6. O-O {[%emt 0:00:41]} d4 {[%emt 0:00:37]} 7. e3 {[%emt 0:00:12]} e5 {[%emt 0:06:19]} 8. d3 {[%emt 0:05:43]} Be7 {[%emt 0:01:44]} 9. exd4 {[%emt 0:00:19]} exd4 {[%emt 0:00:11]} 10. Bg5 {[%emt 0:07:52]} O-O {[%emt 0:00:43]} 11. Bxf6 {[%emt 0:00:21]} Bxf6 {[%emt 0:00:07]} 12. Na3 {[%emt 0:00:13]} Bf5 {[%emt 0:02:40]} 13. Qd2 {[%emt 0:05:08]} Re8 {[%emt 0:04:11]} 14. Rfe1 {[%emt 0:03:11]} Qd7 {[%emt 0:09:31]} 15. Nc2 {[%emt 0:01:57]} a5 {[%emt 0:02:38]} 16. Rxe8+ {[%emt 0:09:39]} Rxe8 {[%emt 0:00:16]} 17. a3 {[%emt 0:00:06]} h6 {[%emt 0:03:54]} 18. h4 {[%emt 0:08:32]} Qc7 {[%emt 0:09:14]} 19. Rb1 {[%emt 0:01:28]} Qb6 {[%emt 0:01:59]} 20. Kh2 {[%emt 0:09:08]} Re7 {[%emt 0:06:53]} 21. Kg1 {[%emt 0:15:45]} Qa6 {[%emt 0:10:33]} 22. Re1 {[%emt 0:09:13]} b5 {[%emt 0:03:09]} 23. Rxe7 {[%emt 0:05:42]} Nxe7 {[%emt 0:02:28]} 24. Qe2 {[%emt 0:00:45]} a4 {[%emt 0:01:19]} 25. g4 {[%emt 0:07:48]} Bxg4 {[%emt 0:01:29]} 26. b4 {[%emt 0:01:55]} bxc4 {[%emt 0:01:55]} 27. dxc4 {[%emt 0:00:10]} Bf5 {[%emt 0:01:13]} 28. b5 {[%emt 0:00:29]} Qa5 {[%emt 0:02:32]} 29. Nce1 {[%emt 0:00:39]} Be6 {[%emt 0:05:02]} 30. Qc2 {[%emt 0:00:53]} Nc8 {[%emt 0:01:54]} 31. Bf1 {[%emt 0:00:36]} Nb6 {[%emt 0:01:19]} 32. Nd3 {[%emt 0:01:12]} Qc3 {[%emt 0:01:22]} 33. Qxc3 {[%emt 0:00:26]} dxc3 {[%emt 0:00:06]} 34. Nfe1 {[%emt 0:00:35]} Bxc4 {[%emt 0:04:12]} 35. Nxc5 {[%emt 0:00:10]} Bb3 {[%emt 0:00:45]} 36. Bd3 {[%emt 0:00:29]} Be7 {[%emt 0:00:32]} 37. Ne4 {[%emt 0:00:10]} Bxa3 {[%emt 0:00:07]} 38. Nxc3 {[%emt 0:00:24]} Bb4 {[%emt 0:00:06]} 39. Nxa4 {[%emt 0:00:05]} Bxa4 {[%emt 0:00:30]} 40. Nf3 {[%emt 0:01:36]} Bb3 {[%emt 0:01:03]} 41. Be4 {[%emt 0:04:53]} Bd5 {[%emt 0:00:34]} 42. Bxd5 {[%emt 0:00:12]} Nxd5 {[%emt 0:00:06]} 43. Ne5 {[%emt 0:00:42]} f6 {[%emt 0:00:49]} 44. Nc4 {[%emt 0:00:56]} Bc5 {[%emt 0:00:19]} 45. Kg2 {[%emt 0:00:13]} Kf7 {[%emt 0:00:14]} 46. Kg3 {[%emt 0:02:09]} Nc3 {[%emt 0:01:28]} 47. b6 {[%emt 0:00:23]} Ne4+ {[%emt 0:00:06]} 48. Kf4 {[%emt 0:01:00]} Nd6 {[%emt 0:00:10]} 49. b7 {[%emt 0:00:11]} Nxb7 {[%emt 0:00:12]} 50. f3 {[%emt 0:00:06]} Nd6 {[%emt 0:00:16]} 51. Nb2 {[%emt 0:00:13]} Kg6 {[%emt 0:00:58] normal} 0-1

[Event "GER-ch Youth U18 2019"]
[Site "Willingen"]
[Date "2019.06.11"]
[Round "4.3"]
[White "Maetzkow, Maximilian Paul"]
[Black "Muckle, Julius"]
[Result "0-1"]
[ECO "D12"]
[WhiteElo "2338"]
[BlackElo "2370"]
[Annotator "NA RC"]
[PlyCount "134"]
[EventDate "2019.06.07"]
[EventType "swiss"]
[EventRounds "9"]
[EventCountry "GER"]
[SourceTitle "playchess.com"]
[Source "ChessBase"]
[SourceQuality "1"]
[TimeControl "40/5400+30:1800+30"]

1. d4 {[%emt 0:00:00]} d5 {[%emt 0:00:00]} 2. c4 {[%emt 0:00:00]} c6 {[%emt 0:00:00]} 3. Nf3 {[%emt 0:00:00]} Nf6 {[%emt 0:00:00]} 4. e3 {[%emt 0:00:00]} Bf5 {[%emt 0:00:16]} 5. Nc3 {[%emt 0:00:08]} e6 {[%emt 0:00:20]} 6. Nh4 {[%emt 0:00:23]} Be4 {[%emt 0:00:11]} 7. f3 {[%emt 0:00:07]} Bg6 {[%emt 0:00:02]} 8. Qb3 {[%emt 0:00:24]} Qc7 {[%emt 0:00:10]} 9. Bd2 {[%emt 0:08:03]} Be7 {[%emt 0:03:07]} 10. Be2 {[%emt 0:06:10]} dxc4 {[%emt 0:06:42]} 11. Bxc4 {[%emt 0:01:23]} b5 {[%emt 0:01:47]} 12. Be2 {[%emt 0:03:07] unterminated} a6 {[%emt 0:17:04] unterminated} 13. O-O {[%emt 0:15:52] unterminated} c5 {[%emt 0:09:58] unterminated} 14. dxc5 {[%emt 0:08:46] unterminated} Nbd7 $11 {[%emt 0:01:15]} 15. Nxg6 {[%emt 0:02:56]} hxg6 {[%emt 0:01:59]} 16. f4 {[%emt 0:11:16]} Nxc5 {[%emt 0:03:21]} 17. Qc2 {[%emt 0:00:51]} O-O {[%emt 0:01:12]} 18. Rac1 {[%emt 0:01:51]} Rac8 {[%emt 0:07:10]} 19. Bf3 {[%emt 0:08:39]} Rfd8 {[%emt 0:04:45]} 20. Ne2 {[%emt 0:00:55]} Qd7 {[%emt 0:06:47]} 21. Nd4 {[%emt 0:02:45]} Nce4 {[%emt 0:03:14]} 22. Qd3 {[%emt 0:01:12]} Nxd2 {[%emt 0:00:17]} 23. Qxd2 {[%emt 0:00:12]} Bc5 {[%emt 0:00:04]} 24. Rfd1 {[%emt 0:07:36]} Bxd4 {[%emt 0:05:11]} 25. exd4 {[%emt 0:00:40]} Rxc1 {[%emt 0:02:21]} 26. Qxc1 {[%emt 0:00:07]} Rc8 {[%emt 0:00:12]} 27. Qe3 {[%emt 0:01:11]} Rc2 {[%emt 0:02:45]} 28. Rd2 {[%emt 0:00:43]} Rc1+ {[%emt 0:01:50]} 29. Rd1 {[%emt 0:04:53]} Rxd1+ {[%emt 0:01:19]} 30. Bxd1 {[%emt 0:00:04]} Nd5 {[%emt 0:01:19]} 31. Qd2 {[%emt 0:00:31]} Qd6 {[%emt 0:01:22]} 32. g3 {[%emt 0:01:19]} Nb4 {[%emt 0:00:37]} 33. Bb3 {[%emt 0:06:57]} Nc6 {[%emt 0:00:36]} 34. d5 {[%emt 0:03:09]} Ne7 {[%emt 0:00:06]} 35. Kf2 {[%emt 0:00:03]} exd5 {[%emt 0:01:20]} 36. Qd4 {[%emt 0:00:12]} Nf5 {[%emt 0:06:26]} 37. Qxd5 {[%emt 0:01:47]} Qb6+ {[%emt 0:00:06]} 38. Ke2 {[%emt 0:00:34]} Qe3+ {[%emt 0:00:31]} 39. Kf1 {[%emt 0:00:19]} Qc1+ {[%emt 0:00:02]} 40. Kf2 {[%emt 0:01:42]} Qxb2+ {[%emt 0:00:10]} 41. Kg1 {[%emt 0:31:38]} Qd4+ {[%emt 0:40:44]} 42. Qxd4 {[%emt 0:00:07]} Nxd4 {[%emt 0:00:01]} 43. Bd1 {[%emt 0:00:00]} Kf8 {[%emt 0:00:00]} 44. Kf2 {[%emt 0:00:00]} Ke7 {[%emt 0:00:00]} 45. Ke3 {[%emt 0:00:00]} Ne6 {[%emt 0:00:00]} 46. h4 {[%emt 0:00:00]} Nc5 {[%emt 0:00:00]} 47. Kd4 {[%emt 0:00:00]} Kd6 {[%emt 0:00:00]} 48. Be2 {[%emt 0:00:00]} Ne6+ {[%emt 0:00:00]} 49. Ke4 {[%emt 0:00:00]} f5+ {[%emt 0:00:00]} 50. Ke3 {[%emt 0:00:00]} Kc5 {[%emt 0:00:00]} 51. h5 {[%emt 0:00:00]} Nd4 {[%emt 0:00:00]} 52. Bd1 {[%emt 0:00:00]} gxh5 {[%emt 0:00:00]} 53. Bxh5 {[%emt 0:00:00]} a5 {[%emt 0:00:00]} 54. Kd3 {[%emt 0:00:00]} b4 {[%emt 0:00:00]} 55. Bd1 {[%emt 0:01:08]} Nb5 {[%emt 0:00:00]} 56. Bb3 {[%emt 0:00:46]} Nd6 {[%emt 0:00:00]} 57. Be6 {[%emt 0:00:13]} a4 {[%emt 0:00:01]} 58. Bd7 {[%emt 0:00:58]} a3 {[%emt 0:00:28]} 59. Kc2 {[%emt 0:02:32]} Nb5 {[%emt 0:00:39]} 60. g4 {[%emt 0:01:15]} Nd4+ {[%emt 0:00:30]} 61. Kb1 {[%emt 0:00:13]} g6 {[%emt 0:02:19]} 62. g5 {[%emt 0:01:49]} Ne2 {[%emt 0:00:50]} 63. Be8 {[%emt 0:01:36]} Nxf4 {[%emt 0:00:17]} 64. Kc2 {[%emt 0:00:00]} Ne6 {[%emt 0:00:26]} 65. Bxg6 {[%emt 0:00:05]} f4 {[%emt 0:00:10]} 66. Kd2 {[%emt 0:00:45]} Nxg5 {[%emt 0:00:29]} 67. Ke2 {[%emt 0:00:02]} Kd4 {[%emt 0:00:15] normal} 0-1

[Event "GER-ch Youth U18 2019"]
[Site "Willingen"]
[Date "2019.06.11"]
[Round "4.4"]
[White "Muetsch, Annmarie"]
[Black "Parvanyan, Ashot"]
[Result "0-1"]
[ECO "B06"]
[WhiteElo "2266"]
[BlackElo "2421"]
[Annotator "NA RC"]
[PlyCount "84"]
[EventDate "2019.06.07"]
[EventType "swiss"]
[EventRounds "9"]
[EventCountry "GER"]
[SourceTitle "playchess.com"]
[Source "ChessBase"]
[SourceQuality "1"]
[TimeControl "40/5400+30:1800+30"]

1. e4 {[%emt 0:00:00]} g6 {[%emt 0:00:00]} 2. d4 {[%emt 0:00:00]} Bg7 {[%emt 0:00:00]} 3. Nc3 {[%emt 0:00:00]} d6 {[%emt 0:00:00]} 4. f4 {[%emt 0:00:00]} a6 {[%emt 0:00:18]} 5. Nf3 {[%emt 0:00:15]} b5 {[%emt 0:00:50]} 6. Bd3 {[%emt 0:00:22]} Nd7 {[%emt 0:00:20]} 7. e5 {[%emt 0:00:26]} Bb7 {[%emt 0:00:53]} 8. Ng5 {[%emt 0:00:34] unterminated} Nf8 {[%emt 0:08:09]} (8... e6 $14) 9. Qe2 {[%emt 0:00:26] unterminated} b4 {[%emt 0:21:00]} 10. Nce4 {[%emt 0:00:36]} Nh6 {[%emt 0:01:43] unterminated} 11. Bb5+ {[%emt 0:11:45] unterminated} axb5 {[%emt 0:19:42]} 12. Qxb5+ {[%emt 0:00:08]} Nd7 {[%emt 0:00:07] unterminated} 13. Qxb7 {[%emt 0:00:24]} Rb8 {[%emt 0:00:26] unterminated} 14. Qc6 {[%emt 0:05:57]} Rb6 {[%emt 0:00:14]} 15. Qa4 {[%emt 0:00:28] unterminated} e6 {[%emt 0:02:49] unterminated} 16. Bd2 $16 {[%emt 0:04:39]} Nf5 {[%emt 0:07:05]} 17. Nf3 {[%emt 0:02:13]} O-O {[%emt 0:02:48]} 18. O-O {[%emt 0:04:40]} Rb8 {[%emt 0:03:47]} 19. Rfe1 {[%emt 0:16:15]} c5 {[%emt 0:09:19]} 20. dxc5 {[%emt 0:09:37]} d5 {[%emt 0:09:34]} 21. Nd6 {[%emt 0:00:46]} Nxc5 {[%emt 0:01:38]} 22. Qa7 {[%emt 0:02:34]} Nxd6 {[%emt 0:00:47]} 23. Qxc5 {[%emt 0:00:05]} Ne4 {[%emt 0:00:17]} 24. Qd4 {[%emt 0:01:13]} f6 {[%emt 0:02:54]} 25. Rad1 {[%emt 0:05:10]} fxe5 {[%emt 0:02:45]} 26. fxe5 {[%emt 0:00:14]} Qe7 {[%emt 0:04:19]} 27. Be3 {[%emt 0:09:44]} Rbc8 {[%emt 0:00:39]} 28. Qd3 {[%emt 0:02:17]} Qc7 {[%emt 0:01:03]} 29. Qa6 {[%emt 0:05:23]} Rfe8 {[%emt 0:00:31]} 30. Rf1 {[%emt 0:04:49]} Ra8 {[%emt 0:00:24]} 31. Qd3 {[%emt 0:01:15]} Rxa2 {[%emt 0:00:27]} 32. Qb3 {[%emt 0:01:31]} Raa8 {[%emt 0:00:08]} 33. Rd4 {[%emt 0:02:42]} Rac8 {[%emt 0:00:55]} 34. Rxb4 {[%emt 0:03:38]} Qxc2 {[%emt 0:00:29]} 35. Qxc2 {[%emt 0:00:21]} Rxc2 {[%emt 0:00:04]} 36. Rb7 {[%emt 0:01:36]} Re2 {[%emt 0:01:00]} 37. Bf4 {[%emt 0:02:15]} Nc5 {[%emt 0:00:18]} 38. Rc7 {[%emt 0:02:33]} Nd3 {[%emt 0:00:10]} 39. Bg3 {[%emt 0:00:53]} Bh6 {[%emt 0:01:01]} 40. b3 {[%emt 0:01:25]} Rf8 {[%emt 0:00:34]} 41. Re7 {[%emt 0:03:34]} Nxe5 {[%emt 0:03:36]} 42. Rxe6 {[%emt 0:03:21]} Nxf3+ {[%emt 0:00:14] normal} 0-1

[Event "GER-ch Youth U18 2019"]
[Site "Willingen"]
[Date "2019.06.11"]
[Round "4.10"]
[White "Martin, Julian"]
[Black "Hinrichs, Niklas"]
[Result "1-0"]
[ECO "B90"]
[WhiteElo "2370"]
[BlackElo "2115"]
[Annotator "NA"]
[PlyCount "95"]
[EventDate "2019.06.07"]
[EventType "swiss"]
[EventRounds "9"]
[EventCountry "GER"]
[SourceTitle "playchess.com"]
[Source "ChessBase"]
[SourceQuality "1"]
[TimeControl "40/5400+30:1800+30"]

1. e4 {[%emt 0:00:00]} c5 {[%emt 0:00:00]} 2. Nf3 {[%emt 0:00:00]} d6 {[%emt 0:00:00]} 3. d4 {[%emt 0:00:00]} cxd4 {[%emt 0:00:00]} 4. Nxd4 {[%emt 0:00:00]} Nf6 {[%emt 0:00:00]} 5. Nc3 {[%emt 0:00:00]} a6 {[%emt 0:00:00]} 6. h4 {[%emt 0:00:00]} e6 {[%emt 0:00:28]} 7. g4 {[%emt 0:00:02]} d5 {[%emt 0:00:46]} 8. exd5 {[%emt 0:00:08]} Nxd5 {[%emt 0:00:54]} 9. Bd2 {[%emt 0:00:05]} b5 {[%emt 0:04:23]} 10. Bg2 {[%emt 0:01:32] unterminated} Bb7 {[%emt 0:00:52]} 11. Qf3 {[%emt 0:00:06]} Nd7 {[%emt 0:02:53] unterminated} 12. O-O-O {[%emt 0:28:33] unterminated} N7b6 {[%emt 0:14:32] unterminated} 13. Nxd5 {[%emt 0:09:34] unterminated} Bxd5 {[%emt 0:06:24] unterminated} 14. Qh3 {[%emt 0:02:31] unterminated} Bxg2 {[%emt 0:05:13]} 15. Qxg2 {[%emt 0:00:08]} Qd5 {[%emt 0:00:05] unterminated} 16. Qxd5 $11 {[%emt 0:06:01]} Nxd5 {[%emt 0:00:04]} 17. f4 {[%emt 0:01:31]} Bc5 {[%emt 0:12:58]} 18. Nf3 {[%emt 0:11:38]} h5 {[%emt 0:09:39]} 19. g5 {[%emt 0:02:52]} Ne3 {[%emt 0:05:25]} 20. Rde1 {[%emt 0:01:36]} Nf5 {[%emt 0:01:11]} 21. g6 {[%emt 0:01:42]} Rh6 {[%emt 0:08:09]} 22. gxf7+ {[%emt 0:05:30]} Kxf7 {[%emt 0:00:26]} 23. Ng5+ {[%emt 0:00:33]} Ke7 {[%emt 0:01:17]} 24. Ne4 {[%emt 0:00:15]} Bd4 {[%emt 0:00:27]} 25. Rh3 {[%emt 0:05:38]} a5 {[%emt 0:06:06]} 26. Rb3 {[%emt 0:03:25]} b4 {[%emt 0:02:03]} 27. a3 {[%emt 0:01:01]} Nxh4 {[%emt 0:02:16]} 28. f5 {[%emt 0:03:17]} Nxf5 {[%emt 0:01:44]} 29. Bxh6 {[%emt 0:00:42]} gxh6 {[%emt 0:00:02]} 30. axb4 {[%emt 0:01:20]} axb4 {[%emt 0:00:51]} 31. Rxb4 {[%emt 0:00:18]} Ra7 {[%emt 0:00:17]} 32. Kd2 {[%emt 0:05:35]} Rd7 {[%emt 0:01:31]} 33. Ke2 {[%emt 0:00:25]} Be3 {[%emt 0:00:37]} 34. c3 {[%emt 0:00:53]} h4 {[%emt 0:00:29]} 35. Ra4 {[%emt 0:02:01]} Bg5 {[%emt 0:02:49]} 36. Rd1 {[%emt 0:02:42]} Rc7 {[%emt 0:03:22]} 37. Kf3 {[%emt 0:00:57]} Kf7 {[%emt 0:02:05]} 38. b4 {[%emt 0:01:46]} Ng3 {[%emt 0:02:40]} 39. Nd6+ {[%emt 0:00:20]} Kg6 {[%emt 0:00:04]} 40. c4 {[%emt 0:00:31]} e5 {[%emt 0:01:15]} 41. b5 {[%emt 0:05:16]} e4+ {[%emt 0:02:48]} 42. Kg2 {[%emt 0:00:29]} Kh5 {[%emt 0:05:44]} 43. Kh3 {[%emt 0:03:48]} Bf4 {[%emt 0:02:50]} 44. b6 {[%emt 0:01:27]} Rg7 {[%emt 0:00:51]} 45. Ra5+ {[%emt 0:03:05]} Rg5 {[%emt 0:02:34]} 46. b7 {[%emt 0:00:28]} Nh1 {[%emt 0:02:29]} 47. Rxg5+ {[%emt 0:00:38]} hxg5 {[%emt 0:00:04]} 48. Kg2 {[%emt 0:00:36] normal} 1-0